[Event "White Rook U14 Final 2019"]
[Site "Sochi"]
[Date "2019.06.06"]
[Round "3.10"]
[White "Ismagilov, Igor"]
[Black "Laukhina, Margarita A."]
[Result "1-0"]
[ECO "A45"]
[WhiteElo "1803"]
[BlackElo "1489"]
[Annotator "NA RC"]
[PlyCount "87"]
[EventDate "2019.06.02"]
[EventCountry "RUS"]
[SourceTitle "playchess.com"]
[Source "ChessBase"]
[SourceQuality "1"]
[TimeControl "5400+30"]

1. d4 {[%emt 0:00:00]} d6 {[%emt 0:00:00]} 2. Bf4 {[%emt 0:00:00]} Nf6 {[%emt 0:00:00]} 3. e3 {[%emt 0:00:11]} c6 {[%emt 0:01:10]} 4. c4 {[%emt 0:00:10]} Qc7 {[%emt 0:00:36]} 5. Bg3 {[%emt 0:02:07]} Bf5 {[%emt 0:06:53]} 6. Nc3 {[%emt 0:00:21]} Nbd7 {[%emt 0:01:10]} 7. Bd3 {[%emt 0:01:30]} Bg6 {[%emt 0:01:18]} 8. Nf3 {[%emt 0:11:58]} e5 {[%emt 0:05:15]} 9. Qc2 {[%emt 0:11:20]} Be7 {[%emt 0:11:00]} 10. O-O {[%emt 0:03:29]} Nh5 {[%emt 0:01:40]} 11. Bh4 {[%emt 0:04:43]} Nf8 {[%emt 0:05:38]} 12. b4 {[%emt 0:13:06]} Bxh4 {[%emt 0:08:37]} 13. Nxh4 {[%emt 0:00:39]} Qe7 {[%emt 0:00:49]} 14. Nf3 {[%emt 0:02:21]} Nf6 {[%emt 0:04:53]} 15. dxe5 {[%emt 0:11:15]} dxe5 {[%emt 0:01:25]} 16. Bxg6 {[%emt 0:04:03]} Nxg6 {[%emt 0:01:34]} 17. c5 {[%emt 0:01:53]} O-O {[%emt 0:02:21]} 18. Nd2 {[%emt 0:04:49]} Nd5 {[%emt 0:04:10]} 19. Qb3 {[%emt 0:02:43]} Nxc3 {[%emt 0:02:20]} 20. Qxc3 {[%emt 0:00:00]} e4 {[%emt 0:05:41]} 21. Rfd1 {[%emt 0:04:21]} f5 {[%emt 0:01:54]} 22. g3 {[%emt 0:02:43]} Ne5 {[%emt 0:05:53]} 23. Nc4 {[%emt 0:04:18]} Nf3+ {[%emt 0:06:19]} 24. Kg2 {[%emt 0:01:40]} h5 {[%emt 0:03:28]} 25. Rd6 {[%emt 0:04:17]} Qg5 {[%emt 0:01:28]} 26. Ne5 {[%emt 0:01:09]} f4 {[%emt 0:00:00]} 27. Qc4+ {[%emt 0:01:31]} Kh8 {[%emt 0:02:38]} 28. Nf7+ {[%emt 0:01:10]} Rxf7 {[%emt 0:00:51]} 29. Qxf7 {[%emt 0:01:05]} fxe3 {[%emt 0:00:21]} 30. fxe3 {[%emt 0:00:11]} Qxe3 {[%emt 0:01:31]} 31. Rf1 {[%emt 0:02:27]} Qg5 {[%emt 0:05:39]} 32. Qf4 {[%emt 0:01:06]} Re8 {[%emt 0:05:17]} 33. Qxg5 {[%emt 0:01:09]} Nxg5 {[%emt 0:01:00]} 34. Rfd1 {[%emt 0:00:32]} Kh7 {[%emt 0:00:01]} 35. Re1 {[%emt 0:00:51]} Re7 {[%emt 0:01:09]} 36. Re3 {[%emt 0:00:54]} g6 {[%emt 0:00:57]} 37. Rd4 {[%emt 0:00:52]} b6 {[%emt 0:00:29]} 38. h4 {[%emt 0:00:24]} bxc5 {[%emt 0:00:37]} 39. bxc5 {[%emt 0:00:25]} Nf7 {[%emt 0:00:16]} 40. Rdxe4 {[%emt 0:00:02]} Rb7 {[%emt 0:00:19]} 41. Re7 {[%emt 0:00:04]} Rb2+ {[%emt 0:00:07]} 42. Re2 {[%emt 0:00:07]} Rxe2+ {[%emt 0:00:05]} 43. Rxe2 {[%emt 0:00:03]} Kg7 {[%emt 0:00:14]} 44. Re6 {[%emt 0:00:02]} 1-0

[Event "White Rook U14 Final 2019"]
[Site "Sochi"]
[Date "2019.06.06"]
[Round "3.11"]
[White "Tolmaev, Georgy"]
[Black "Khodko, Yurii N."]
[Result "0-1"]
[ECO "A03"]
[WhiteElo "1302"]
[BlackElo "1727"]
[Annotator "NA RC"]
[PlyCount "92"]
[EventDate "2019.06.02"]
[EventCountry "RUS"]
[SourceTitle "playchess.com"]
[Source "ChessBase"]
[SourceQuality "1"]
[TimeControl "5400+30"]

1. d4 {[%emt 0:00:00]} Nf6 {[%emt 0:00:00]} 2. e3 {[%emt 0:00:00]} g6 {[%emt 0:00:16]} 3. f4 {[%emt 0:00:00]} d5 {[%emt 0:01:46]} 4. Bd3 {[%emt 0:00:10]} Bg7 {[%emt 0:00:55]} 5. Nf3 {[%emt 0:00:13]} Bf5 {[%emt 0:04:32]} 6. O-O {[%emt 0:02:11]} h5 {[%emt 0:02:59]} 7. Ne5 {[%emt 0:00:32]} e6 {[%emt 0:05:01]} 8. b3 {[%emt 0:07:37]} Ng4 {[%emt 0:07:25]} 9. Qe2 {[%emt 0:01:52]} Nxe5 {[%emt 0:02:53]} 10. fxe5 {[%emt 0:11:27]} Bh6 {[%emt 0:03:55]} 11. c3 {[%emt 0:00:35]} Nc6 {[%emt 0:06:57]} 12. Nd2 {[%emt 0:07:06]} O-O {[%emt 0:04:27]} 13. Nf3 {[%emt 0:05:30]} Bxd3 {[%emt 0:07:58]} 14. Qxd3 {[%emt 0:01:38]} Ne7 {[%emt 0:06:20]} 15. e4 {[%emt 0:00:12]} Bxc1 {[%emt 0:00:48]} 16. Raxc1 {[%emt 0:03:49]} c6 {[%emt 0:00:05]} 17. Qe3 {[%emt 0:00:07]} dxe4 {[%emt 0:01:11]} 18. Qxe4 {[%emt 0:01:38]} Nf5 {[%emt 0:00:29]} 19. Qf4 {[%emt 0:00:02]} Rc8 {[%emt 0:01:10]} 20. Ng5 {[%emt 0:03:51]} c5 {[%emt 0:02:26]} 21. dxc5 {[%emt 0:09:55]} Rxc5 {[%emt 0:03:05]} 22. Ne4 {[%emt 0:06:36]} Rc8 {[%emt 0:01:48]} 23. Nf6+ {[%emt 0:00:06]} Kg7 {[%emt 0:01:18]} 24. Rcd1 {[%emt 0:02:34]} Qb6+ {[%emt 0:00:50]} 25. Kh1 {[%emt 0:10:02]} Qe3 {[%emt 0:02:33]} 26. Ne4 {[%emt 0:03:01]} Qxf4 {[%emt 0:03:36]} 27. Rxf4 {[%emt 0:00:08]} Rfd8 {[%emt 0:00:08]} 28. Nd6 {[%emt 0:03:07]} Rxc3 {[%emt 0:01:09]} 29. Kg1 {[%emt 0:00:57]} Nxd6 {[%emt 0:00:10]} 30. Rxd6 {[%emt 0:03:42]} Rxd6 {[%emt 0:00:10]} 31. exd6 {[%emt 0:00:02]} Rd3 {[%emt 0:00:35]} 32. Rc4 {[%emt 0:01:37]} Rxd6 {[%emt 0:00:00]} 33. Rc7 {[%emt 0:00:06]} Rd1+ {[%emt 0:00:00]} 34. Kf2 {[%emt 0:00:06]} Rd2+ {[%emt 0:00:00]} 35. Kf3 {[%emt 0:00:00]} Rxa2 {[%emt 0:00:00]} 36. Rxb7 {[%emt 0:00:00]} g5 {[%emt 0:00:51]} 37. h3 {[%emt 0:00:20]} Kg6 {[%emt 0:00:00]} 38. g3 {[%emt 0:00:07]} Ra6 {[%emt 0:01:30]} 39. b4 {[%emt 0:01:34]} f5 {[%emt 0:01:46]} 40. h4 {[%emt 0:01:09]} g4+ {[%emt 0:01:25]} 41. Kf4 {[%emt 0:00:29]} Kf6 {[%emt 0:01:28]} 42. Rc7 {[%emt 0:01:08]} Ra3 {[%emt 0:00:15]} 43. Rf7+ {[%emt 0:00:26]} Kxf7 {[%emt 0:00:00]} 44. Kg5 {[%emt 0:00:05]} Rxg3 {[%emt 0:00:18]} 45. b5 {[%emt 0:00:00]} Rh3 {[%emt 0:00:13]} 46. Kxh5 {[%emt 0:00:00]} Kf6 {[%emt 0:00:09]} 0-1

[Event "White Rook U14 Final 2019"]
[Site "Sochi"]
[Date "2019.06.06"]
[Round "3.12"]
[White "Loviagina, Dariana"]
[Black "Karaseni, Ekaterina"]
[Result "1-0"]
[ECO "A04"]
[WhiteElo "1297"]
[BlackElo "1293"]
[Annotator "NA RC"]
[PlyCount "107"]
[EventDate "2019.06.02"]
[EventCountry "RUS"]
[SourceTitle "playchess.com"]
[Source "ChessBase"]
[SourceQuality "1"]
[TimeControl "5400+30"]

1. Nf3 {[%emt 0:00:00]} c5 {[%emt 0:00:00]} 2. b3 {[%emt 0:00:00]} d6 {[%emt 0:00:00]} 3. Bb2 {[%emt 0:00:00]} Nf6 {[%emt 0:00:00]} 4. e3 {[%emt 0:00:00]} g6 {[%emt 0:00:00]} 5. d4 {[%emt 0:00:00]} cxd4 {[%emt 0:00:25]} 6. exd4 {[%emt 0:00:00]} Bg7 {[%emt 0:00:14]} 7. g3 {[%emt 0:01:01]} O-O {[%emt 0:00:00]} 8. Bg2 {[%emt 0:00:00]} Bg4 {[%emt 0:00:55]} 9. O-O {[%emt 0:00:07]} Nc6 {[%emt 0:00:30]} 10. h3 {[%emt 0:04:05]} Bf5 {[%emt 0:00:31]} 11. a3 {[%emt 0:03:31]} Rc8 {[%emt 0:04:21]} 12. d5 {[%emt 0:01:19]} Nb8 {[%emt 0:05:35]} 13. c4 {[%emt 0:00:39]} Na6 {[%emt 0:04:39]} 14. Nbd2 {[%emt 0:03:43]} Nc5 {[%emt 0:03:44]} 15. b4 {[%emt 0:05:33]} Nce4 {[%emt 0:03:05]} 16. Nxe4 {[%emt 0:00:47]} Nxe4 {[%emt 0:00:30]} 17. Bxg7 {[%emt 0:00:00]} Kxg7 {[%emt 0:00:05]} 18. Qd4+ {[%emt 0:00:00]} Nf6 {[%emt 0:02:09]} 19. g4 {[%emt 0:01:05]} e5 {[%emt 0:17:26]} 20. dxe6 {[%emt 0:00:33]} Bxe6 {[%emt 0:00:51]} 21. g5 {[%emt 0:00:31]} Rxc4 {[%emt 0:01:40]} 22. Qxf6+ {[%emt 0:01:18]} Qxf6 {[%emt 0:00:00]} 23. gxf6+ {[%emt 0:00:37]} Kxf6 {[%emt 0:00:00]} 24. Nd2 {[%emt 0:01:27]} Rh4 {[%emt 0:04:33]} 25. Kh2 {[%emt 0:02:48]} Rc8 {[%emt 0:02:41]} 26. Rac1 {[%emt 0:01:03]} b6 {[%emt 0:03:12]} 27. Rxc8 {[%emt 0:01:28]} Bxc8 {[%emt 0:00:00]} 28. Rc1 {[%emt 0:00:11]} Be6 {[%emt 0:02:55]} 29. Ne4+ {[%emt 0:01:57]} Ke5 {[%emt 0:02:21]} 30. Re1 {[%emt 0:02:59]} d5 {[%emt 0:04:00]} 31. Nc3+ {[%emt 0:01:55]} Kd6 {[%emt 0:02:03]} 32. Nb5+ {[%emt 0:00:53]} Kd7 {[%emt 0:02:23]} 33. Nxa7 {[%emt 0:01:02]} Rc4 {[%emt 0:01:23]} 34. Rd1 {[%emt 0:00:20]} Kd6 {[%emt 0:02:36]} 35. Nb5+ {[%emt 0:00:47]} Kc6 {[%emt 0:01:35]} 36. Nd4+ {[%emt 0:00:29]} Kd6 {[%emt 0:00:33]} 37. Bf1 {[%emt 0:01:56]} Rc8 {[%emt 0:01:27]} 38. Nb5+ {[%emt 0:01:15]} Ke7 {[%emt 0:00:58]} 39. Bg2 {[%emt 0:00:44]} Rd8 {[%emt 0:00:21]} 40. Rd4 {[%emt 0:01:18]} Kf6 {[%emt 0:01:29]} 41. f4 {[%emt 0:01:36]} h6 {[%emt 0:03:50]} 42. Kg3 {[%emt 0:08:33]} g5 {[%emt 0:01:17]} 43. Nc3 {[%emt 0:01:37]} gxf4+ {[%emt 0:01:04]} 44. Kxf4 {[%emt 0:00:00]} Rc8 {[%emt 0:04:25]} 45. Nxd5+ {[%emt 0:00:52]} Bxd5 {[%emt 0:00:00]} 46. Rxd5 {[%emt 0:00:24]} Kg7 {[%emt 0:02:25]} 47. Be4 {[%emt 0:01:01]} Rc3 {[%emt 0:01:15]} 48. Rd3 {[%emt 0:00:46]} Rc4 {[%emt 0:00:25]} 49. h4 {[%emt 0:00:14]} Rc8 {[%emt 0:02:50]} 50. Rd6 {[%emt 0:01:07]} Rb8 {[%emt 0:00:50]} 51. Bd5 {[%emt 0:01:17]} f6 {[%emt 0:01:24]} 52. Kf5 {[%emt 0:00:31]} Re8 {[%emt 0:05:15]} 53. Rd7+ {[%emt 0:01:06]} Kh8 {[%emt 0:01:27]} 54. Kg6 {[%emt 0:00:25]} 1-0

[Event "White Rook U14 Final 2019"]
[Site "Sochi"]
[Date "2019.06.06"]
[Round "3.14"]
[White "Babeshko, Vitaliy"]
[Black "Munkhzul, Davaakhuu"]
[Result "0-1"]
[ECO "B45"]
[WhiteElo "1331"]
[BlackElo "1806"]
[Annotator "NA RC"]
[PlyCount "92"]
[EventDate "2019.06.02"]
[EventCountry "RUS"]
[SourceTitle "playchess.com"]
[Source "ChessBase"]
[SourceQuality "1"]
[TimeControl "5400+30"]

1. e4 {[%emt 0:00:00]} c5 {[%emt 0:00:00]} 2. Nf3 {[%emt 0:00:00]} e6 {[%emt 0:00:00]} 3. d4 {[%emt 0:00:00]} cxd4 {[%emt 0:00:00]} 4. Nxd4 {[%emt 0:00:00]} Nc6 {[%emt 0:00:00]} 5. Nc3 {[%emt 0:00:19]} Nf6 {[%emt 0:00:00]} 6. Ndb5 {[%emt 0:00:00]} Bb4 {[%emt 0:00:00]} 7. a3 {[%emt 0:00:05]} Bxc3+ {[%emt 0:00:00]} 8. Nxc3 {[%emt 0:00:38]} d5 {[%emt 0:00:00]} 9. exd5 {[%emt 0:00:09]} exd5 {[%emt 0:00:00]} 10. Bd3 {[%emt 0:00:13]} O-O {[%emt 0:00:00]} 11. O-O {[%emt 0:00:00]} d4 {[%emt 0:00:00]} 12. Ne2 {[%emt 0:00:01]} Bg4 {[%emt 0:00:07]} 13. h3 {[%emt 0:00:29]} Bxe2 {[%emt 0:00:52]} 14. Bxe2 {[%emt 0:01:55]} Qb6 {[%emt 0:00:43]} 15. Rb1 {[%emt 0:02:18]} Rfe8 {[%emt 0:01:08]} 16. Bf4 {[%emt 0:02:19]} Rad8 {[%emt 0:05:50]} 17. Re1 {[%emt 0:02:34]} Ne5 {[%emt 0:01:31]} 18. Bd3 {[%emt 0:11:25]} Nxd3 {[%emt 0:01:18]} 19. Rxe8+ {[%emt 0:01:31]} Rxe8 {[%emt 0:00:35]} 20. Qxd3 {[%emt 0:00:06]} Nd5 {[%emt 0:00:39]} 21. Bg3 {[%emt 0:02:39]} Nc3 {[%emt 0:01:09]} 22. Rf1 {[%emt 0:01:58]} Qxb2 {[%emt 0:00:43]} 23. Kh2 {[%emt 0:02:28]} Qb5 {[%emt 0:02:14]} 24. Rd1 {[%emt 0:05:34]} Qb6 {[%emt 0:02:09]} 25. Rd2 {[%emt 0:06:25]} Rd8 {[%emt 0:10:10]} 26. Be5 {[%emt 0:06:27]} Nb1 {[%emt 0:06:52]} 27. Rd1 {[%emt 0:04:09]} Nc3 {[%emt 0:10:04]} 28. Rd2 {[%emt 0:01:05]} a6 {[%emt 0:04:09]} 29. Bxd4 {[%emt 0:05:38]} Qd6+ {[%emt 0:01:30]} 30. Qg3 {[%emt 0:05:14]} Qxg3+ {[%emt 0:00:21]} 31. fxg3 {[%emt 0:00:06]} Nb5 {[%emt 0:00:00]} 32. c3 {[%emt 0:01:30]} Nxa3 {[%emt 0:00:00]} 33. Re2 {[%emt 0:00:42]} Nb5 {[%emt 0:01:07]} 34. Re7 {[%emt 0:00:50]} Nxd4 {[%emt 0:01:39]} 35. cxd4 {[%emt 0:00:37]} Rb8 {[%emt 0:00:51]} 36. d5 {[%emt 0:00:07]} Kf8 {[%emt 0:00:11]} 37. d6 {[%emt 0:01:19]} b6 {[%emt 0:00:44]} 38. g4 {[%emt 0:04:06]} a5 {[%emt 0:00:39]} 39. Re4 {[%emt 0:01:34]} Rd8 {[%emt 0:02:23]} 40. Rd4 {[%emt 0:00:54]} f6 {[%emt 0:00:12]} 41. Kg3 {[%emt 0:00:21]} Kf7 {[%emt 0:00:04]} 42. Kf4 {[%emt 0:00:36]} Ke6 {[%emt 0:00:05]} 43. h4 {[%emt 0:00:37]} Rxd6 {[%emt 0:00:06]} 44. Ra4 {[%emt 0:00:41]} Rd2 {[%emt 0:00:11]} 45. g3 {[%emt 0:00:56]} Kd5 {[%emt 0:00:38]} 46. g5 {[%emt 0:01:20]} Rd4+ {[%emt 0:00:00]} 0-1

[Event "White Rook U14 Final 2019"]
[Site "Sochi"]
[Date "2019.06.06"]
[Round "3.15"]
[White "Aldar Burentegsh"]
[Black "Eperin, Andrey"]
[Result "1-0"]
[ECO "B33"]
[WhiteElo "1812"]
[BlackElo "1288"]
[Annotator "NA RC"]
[PlyCount "131"]
[EventDate "2019.06.02"]
[EventCountry "RUS"]
[SourceTitle "playchess.com"]
[Source "ChessBase"]
[SourceQuality "1"]
[TimeControl "5400+30"]

1. e4 {[%emt 0:00:00]} c5 {[%emt 0:00:08]} 2. Nf3 {[%emt 0:00:03]} Nc6 {[%emt 0:00:06]} 3. d4 {[%emt 0:00:03]} cxd4 {[%emt 0:00:06]} 4. Nxd4 {[%emt 0:00:05]} Nf6 {[%emt 0:00:06]} 5. Nc3 {[%emt 0:00:06]} e5 {[%emt 0:00:11]} 6. Ndb5 {[%emt 0:00:08]} d6 {[%emt 0:00:08]} 7. Bg5 {[%emt 0:00:06]} a6 {[%emt 0:00:08]} 8. Na3 {[%emt 0:00:05]} b5 {[%emt 0:00:10]} 9. Nd5 {[%emt 0:00:03]} Be7 {[%emt 0:00:11]} 10. Bxf6 {[%emt 0:00:15]} Bxf6 {[%emt 0:00:03]} 11. c3 {[%emt 0:00:22]} O-O {[%emt 0:00:14]} 12. Be2 {[%emt 0:00:03]} Be6 {[%emt 0:00:29]} 13. Nxf6+ {[%emt 0:00:36]} Qxf6 {[%emt 0:00:12]} 14. Qxd6 {[%emt 0:00:08]} Rac8 {[%emt 0:00:55]} 15. Qd2 {[%emt 0:00:34]} Rfd8 {[%emt 0:00:28]} 16. Qe3 {[%emt 0:00:06]} Rb8 {[%emt 0:10:49]} 17. Nc2 {[%emt 0:02:08]} Rdc8 {[%emt 0:08:35]} 18. O-O {[%emt 0:00:12]} a5 {[%emt 0:02:57]} 19. f4 {[%emt 0:00:55]} exf4 {[%emt 0:03:57]} 20. Rxf4 {[%emt 0:01:27]} Qg6 {[%emt 0:01:17]} 21. Nd4 {[%emt 0:01:20]} Nxd4 {[%emt 0:05:55]} 22. cxd4 {[%emt 0:00:12]} Rc2 {[%emt 0:00:12]} 23. d5 {[%emt 0:00:47]} Bc8 {[%emt 0:01:49]} 24. Raf1 {[%emt 0:02:05]} Rb7 {[%emt 0:00:57]} 25. Qd3 {[%emt 0:00:30]} Rcc7 {[%emt 0:00:44]} 26. Qf3 {[%emt 0:09:41]} Qd6 {[%emt 0:09:22]} 27. Bd3 {[%emt 0:06:32]} Qe5 {[%emt 0:00:45]} 28. Qf2 {[%emt 0:08:04]} f6 {[%emt 0:04:12]} 29. Qe2 {[%emt 0:06:26]} Bd7 {[%emt 0:05:11]} 30. Qd2 {[%emt 0:00:54]} Rc8 {[%emt 0:04:19]} 31. Kh1 {[%emt 0:03:06]} b4 {[%emt 0:00:08]} 32. b3 {[%emt 0:00:59]} Rbc7 {[%emt 0:00:09]} 33. Bc4 {[%emt 0:00:40]} Qd6 {[%emt 0:00:17]} 34. Qf2 {[%emt 0:01:06]} Re8 {[%emt 0:00:52]} 35. h4 {[%emt 0:05:54]} Re5 {[%emt 0:01:36]} 36. g4 {[%emt 0:00:14]} h6 {[%emt 0:01:25]} 37. Rg1 {[%emt 0:09:17]} Be8 {[%emt 0:01:43]} 38. Qf3 {[%emt 0:04:26]} Bg6 {[%emt 0:00:56]} 39. Rg2 {[%emt 0:00:46]} Rce7 {[%emt 0:00:59]} 40. Re2 {[%emt 0:00:12]} Re8 {[%emt 0:01:26]} 41. h5 {[%emt 0:00:45]} Bf7 {[%emt 0:00:07]} 42. Qg3 {[%emt 0:03:38]} Rd8 {[%emt 0:01:34]} 43. Rf5 {[%emt 0:04:38]} Rxf5 {[%emt 0:00:33]} 44. Qxd6 {[%emt 0:00:07]} Rxh5+ {[%emt 0:00:05]} 45. Qh2 {[%emt 0:00:25]} Rxh2+ {[%emt 0:00:07]} 46. Kxh2 {[%emt 0:00:05]} Kf8 {[%emt 0:00:37]} 47. Kg3 {[%emt 0:00:32]} Ke7 {[%emt 0:01:03]} 48. Kf4 {[%emt 0:00:17]} Kd6 {[%emt 0:00:16]} 49. Rc2 {[%emt 0:00:26]} Rc8 {[%emt 0:00:53]} 50. Re2 {[%emt 0:00:28]} Re8 {[%emt 0:00:11]} 51. Bb5 {[%emt 0:00:26]} Re7 {[%emt 0:00:54]} 52. Bd3 {[%emt 0:00:49]} Re8 {[%emt 0:01:18]} 53. Rc2 {[%emt 0:00:07]} Ra8 {[%emt 0:00:36]} 54. Rc6+ {[%emt 0:00:10]} Kd7 {[%emt 0:00:32]} 55. Bb5 {[%emt 0:00:15]} Kd8 {[%emt 0:00:22]} 56. Rd6+ {[%emt 0:00:22]} Ke7 {[%emt 0:00:12]} 57. Rd7+ {[%emt 0:00:24]} Kf8 {[%emt 0:00:09]} 58. Kf5 {[%emt 0:00:59]} Be8 {[%emt 0:01:24]} 59. Rb7 {[%emt 0:00:05]} Bxb5 {[%emt 0:00:47]} 60. Rxb5 {[%emt 0:00:07]} Ra7 {[%emt 0:02:36]} 61. Kg6 {[%emt 0:00:10]} Ra8 {[%emt 0:00:46]} 62. Rb7 {[%emt 0:00:09]} Re8 {[%emt 0:00:52]} 63. Rf7+ {[%emt 0:00:22]} Kg8 {[%emt 0:00:07]} 64. Rxg7+ {[%emt 0:00:05]} Kh8 {[%emt 0:00:11]} 65. d6 {[%emt 0:01:13]} Rd8 {[%emt 0:01:40]} 66. d7 {[%emt 0:00:06]} 1-0

[Event "White Rook U14 Final 2019"]
[Site "Sochi"]
[Date "2019.06.06"]
[Round "3.16"]
[White "Noyanzina, Sofia"]
[Black "Unurzul, Davaakhuu"]
[Result "1/2-1/2"]
[ECO "C50"]
[WhiteElo "1318"]
[BlackElo "1442"]
[Annotator "NA RC"]
[PlyCount "114"]
[EventDate "2019.06.02"]
[EventCountry "RUS"]
[SourceTitle "playchess.com"]
[Source "ChessBase"]
[SourceQuality "1"]
[TimeControl "5400+30"]

1. e4 {[%emt 0:00:00]} e5 {[%emt 0:00:00]} 2. Nf3 {[%emt 0:00:00]} Nc6 {[%emt 0:00:00]} 3. d4 {[%emt 0:00:00]} exd4 {[%emt 0:00:00]} 4. Bc4 {[%emt 0:00:00]} d6 {[%emt 0:00:10]} 5. Nxd4 {[%emt 0:00:00]} Nf6 {[%emt 0:00:10]} 6. Nxc6 {[%emt 0:01:10]} bxc6 {[%emt 0:01:02]} 7. Nc3 {[%emt 0:00:16]} Be7 {[%emt 0:02:52]} 8. O-O {[%emt 0:00:19]} O-O {[%emt 0:01:15]} 9. h3 {[%emt 0:01:33]} h6 {[%emt 0:02:29]} 10. Re1 {[%emt 0:01:34]} Bb7 {[%emt 0:10:28]} 11. Qe2 {[%emt 0:15:59]} Re8 {[%emt 0:06:20]} 12. Ba6 {[%emt 0:04:41]} Bxa6 {[%emt 0:01:05]} 13. Qxa6 {[%emt 0:00:00]} Qd7 {[%emt 0:00:41]} 14. Qa4 {[%emt 0:05:48]} Reb8 {[%emt 0:05:11]} 15. Rb1 {[%emt 0:03:55]} a5 {[%emt 0:00:48]} 16. a3 {[%emt 0:02:04]} Nh7 {[%emt 0:13:51]} 17. Nd5 {[%emt 0:08:03]} Bf6 {[%emt 0:01:23]} 18. b3 {[%emt 0:00:32]} Rd8 {[%emt 0:13:30]} 19. Nf4 {[%emt 0:04:31]} Re8 {[%emt 0:00:42]} 20. Bb2 {[%emt 0:02:24]} Be5 {[%emt 0:06:36]} 21. Nd3 {[%emt 0:01:32]} Bxb2 {[%emt 0:12:34]} 22. Nxb2 {[%emt 0:02:40]} Nf6 {[%emt 0:00:57]} 23. f3 {[%emt 0:00:54]} d5 {[%emt 0:00:00]} 24. exd5 {[%emt 0:00:00]} cxd5 {[%emt 0:00:54]} 25. Rxe8+ {[%emt 0:05:03]} Qxe8 {[%emt 0:02:07]} 26. Qxe8+ {[%emt 0:00:13]} Rxe8 {[%emt 0:00:46]} 27. Kf2 {[%emt 0:01:33]} Kf8 {[%emt 0:00:00]} 28. Re1 {[%emt 0:00:03]} Re6 {[%emt 0:00:24]} 29. Nd3 {[%emt 0:00:32]} Rc6 {[%emt 0:00:25]} 30. Re2 {[%emt 0:01:02]} Rc3 {[%emt 0:00:29]} 31. Ke3 {[%emt 0:00:34]} c5 {[%emt 0:00:59]} 32. Kd2 {[%emt 0:03:06]} d4 {[%emt 0:02:15]} 33. Nb2 {[%emt 0:00:25]} c4 {[%emt 0:00:00]} 34. Nd1 {[%emt 0:00:40]} Rxc2+ {[%emt 0:01:25]} 35. Kxc2 {[%emt 0:00:19]} d3+ {[%emt 0:00:09]} 36. Kd2 {[%emt 0:00:00]} dxe2 {[%emt 0:00:00]} 37. Kxe2 {[%emt 0:00:00]} cxb3 {[%emt 0:00:00]} 38. Nb2 {[%emt 0:00:00]} Nd5 {[%emt 0:00:00]} 39. Kd2 {[%emt 0:00:00]} Ke7 {[%emt 0:00:00]} 40. a4 {[%emt 0:00:00]} Nf4 {[%emt 0:00:00]} 41. Nc4 {[%emt 0:00:00]} Nxg2 {[%emt 0:00:57]} 42. Nxa5 {[%emt 0:01:50]} b2 {[%emt 0:00:00]} 43. Kc2 {[%emt 0:00:32]} Ne1+ {[%emt 0:00:00]} 44. Kxb2 {[%emt 0:00:47]} Nxf3 {[%emt 0:00:45]} 45. Nb7 {[%emt 0:00:31]} Kd7 {[%emt 0:00:30]} 46. a5 {[%emt 0:00:12]} Kc7 {[%emt 0:00:05]} 47. Nc5 {[%emt 0:00:45]} Ng5 {[%emt 0:00:30]} 48. h4 {[%emt 0:00:45]} Nf3 {[%emt 0:00:30]} 49. h5 {[%emt 0:00:33]} Kc6 {[%emt 0:00:29]} 50. a6 {[%emt 0:00:36]} Kb6 {[%emt 0:01:23]} 51. Kc3 {[%emt 0:00:29]} Ne5 {[%emt 0:00:39]} 52. Kd4 {[%emt 0:00:30]} Nc6+ {[%emt 0:00:05]} 53. Kd5 {[%emt 0:01:00]} Ne7+ {[%emt 0:00:15]} 54. Kd6 {[%emt 0:00:17]} Nf5+ {[%emt 0:01:18]} 55. Kd7 {[%emt 0:00:56]} Nd4 {[%emt 0:02:43]} 56. Ke7 {[%emt 0:01:17]} f5 {[%emt 0:02:41]} 57. Nd3 {[%emt 0:01:26]} Kxa6 {[%emt 0:00:38]} 1/2-1/2

[Event "White Rook U14 Final 2019"]
[Site "Sochi"]
[Date "2019.06.06"]
[Round "3.17"]
[White "Erastov, Semen"]
[Black "Efimov, Leonid"]
[Result "1-0"]
[ECO "E04"]
[WhiteElo "2028"]
[BlackElo "1666"]
[Annotator "NA RC"]
[PlyCount "63"]
[EventDate "2019.06.02"]
[EventCountry "RUS"]
[SourceTitle "playchess.com"]
[Source "ChessBase"]
[SourceQuality "1"]
[TimeControl "5400+30"]

1. d4 {[%emt 0:00:00]} d5 {[%emt 0:00:00]} 2. c4 {[%emt 0:00:00]} e6 {[%emt 0:00:00]} 3. Nf3 {[%emt 0:00:00]} Nf6 {[%emt 0:00:00]} 4. g3 {[%emt 0:00:00]} dxc4 {[%emt 0:00:00]} 5. Bg2 {[%emt 0:00:00]} Bb4+ {[%emt 0:00:10]} 6. Bd2 {[%emt 0:00:00]} c5 {[%emt 0:00:00]} 7. Bxb4 {[%emt 0:10:19]} cxb4 {[%emt 0:00:00]} 8. Ne5 {[%emt 0:02:27]} O-O {[%emt 0:00:27]} 9. Nxc4 {[%emt 0:02:32]} Nc6 {[%emt 0:05:40]} 10. e3 {[%emt 0:01:57]} Nd5 {[%emt 0:00:14]} 11. O-O {[%emt 0:00:14]} b5 {[%emt 0:00:58]} 12. Ncd2 {[%emt 0:01:38]} Bb7 {[%emt 0:00:28]} 13. Nb3 {[%emt 0:02:13]} Rc8 {[%emt 0:04:22]} 14. N1d2 {[%emt 0:01:03]} Ba8 {[%emt 0:00:07]} 15. Qe2 {[%emt 0:00:31]} a6 {[%emt 0:04:07]} 16. Nc5 {[%emt 0:02:54]} e5 {[%emt 0:13:15]} 17. Ndb3 {[%emt 0:02:35]} exd4 {[%emt 0:01:58]} 18. Rfd1 {[%emt 0:07:57]} Re8 {[%emt 0:01:11]} 19. Qd2 {[%emt 0:00:38]} a5 {[%emt 0:11:17]} 20. Rac1 {[%emt 0:01:17]} Nb6 {[%emt 0:11:15]} 21. Bxc6 {[%emt 0:03:22]} Nc4 {[%emt 0:12:29]} 22. Qxd4 {[%emt 0:22:32]} Bxc6 {[%emt 0:00:54]} 23. Qxd8 {[%emt 0:02:56]} Rexd8 {[%emt 0:00:15]} 24. Rxd8+ {[%emt 0:00:57]} Rxd8 {[%emt 0:00:23]} 25. Nd4 {[%emt 0:00:37]} Bd5 {[%emt 0:00:10]} 26. b3 {[%emt 0:00:00]} Nd2 {[%emt 0:01:05]} 27. Rd1 {[%emt 0:00:05]} Ne4 {[%emt 0:02:46]} 28. Nxe4 {[%emt 0:03:43]} Bxe4 {[%emt 0:00:09]} 29. Rc1 {[%emt 0:00:16]} Bd3 {[%emt 0:00:13]} 30. Nc6 {[%emt 0:00:21]} Rc8 {[%emt 0:00:42]} 31. Ne7+ {[%emt 0:00:40]} Kf8 {[%emt 0:00:10]} 32. Nxc8 {[%emt 0:00:03]} 1-0